Cogmind - Beta 11 @@@ ROGUE MODE // 2022.03.28 @ 18:08:16 Player: ldi (hl). (hl) Result: Destroyed by S-43 Plague with Heavy Machine Gun Performance ------------- Evolutions (6) 3000 Regions Visited (20) 4000 Robots Destroyed (167) 835 Value Destroyed (8763) 8763 Prototype IDs (27) 540 Alien Tech Used (0) 0 Bonus (6160) 6160 TOTAL SCORE: 23298 Bonus ------- High Alert Combat Kills 1745 Follower Combat Kills 1786 Entered Garrisons 600 Used RIF Installer 1500 Entered DSFs 500 Met Data Miner 300 Friendly Fire -271 Cogmind --------- Core Integrity 0/1150 Matter 290/300 Energy 99/100 System Corruption 0% Temperature Cool (0) Movement Core (50) Location -3/Proximity Caves Parts ------- > --- POWER (2) -------- (None) > --- PROPULSION (4) --- (None) > --- UTILITY (11) ----- Authchip [R/Combat] > --- WEAPON (2) ------- (None) > --- INVENTORY (5) ---- Improved Remote Shield Advanced Plasma Cannon Matter Neutralizer KE Penetrator Slug Cannon Peak State ------------ > --- POWER ------------ Light Antimatter Reactor Light Antimatter Reactor > --- PROPULSION ------- Flexi-carbon Leg Flexi-carbon Leg Flexi-carbon Leg Enhanced Armored Leg > --- UTILITY ---------- Improved Heat Sink Large Storage Unit Enhanced Optical Array Long-range Sensor Array Advanced Targeting Computer Advanced Focal Shield Thermal Shield Advanced Shield Generator Hacking Suite Advanced Drone Bay > --- WEAPON ----------- Heavy Flak Cannon Heavy Flak Cannon > --- INVENTORY -------- Carbon-fiber Leg Advanced VSS Leg Large Storage Unit Authchip [R/Combat] Cooled Pulse Rifle Cooled Pulse Rifle Cooled Particle Cannon Heavy Plasma Cannon Advanced Plasma Cannon Advanced Plasma Cannon Advanced Plasma Cannon Advanced Plasma Cannon Matter Neutralizer Remote Datajack [Rating: 105] Favorites ----------- Power Improved Deuterium Engine Engine Improved Deuterium Engine Power Core Light Nuclear Core Reactor Light Antimatter Reactor Propulsion Carbon-fiber Leg Treads Heavy Treads Leg Carbon-fiber Leg Wheel Centrium Wheel Utility Large Storage Unit Device Improved Heat Sink Storage Large Storage Unit Processor Enhanced Optical Array Hackware Hacking Suite Protection Improved Light Armor Plating Weapon Cooled Particle Cannon Energy Gun Cooled Pulse Rifle Energy Cannon Cooled Particle Cannon Ballistic Gun Heavy Machine Gun Ballistic Cannon Heavy Flak Cannon Special Weapon Remote Datajack Build | -11 -10 -9 -8 -8 -7 -7 -6 -6 -6 -6 -6 -6 -5 -5 -5 -4 -4 -4 -4 -3 ------- Run | Scr Mat Mat Mat Gar Fac Gar Fac Gar Fac Low Low Dat Pro Fac DSF Fac Upp Upp War Pro Slots Evolved 12 | . . 2 2 . 2 . 2 . . . . . . 2 . 2 . . . . Power 1 | . . . . . . . . . . . . . . . . 1 . . . . Propulsion 2 | . . 1 1 . . . . . . . . . . . . . . . . . Utility 9 | . . 1 1 . 2 . 2 . . . . . . 2 . 1 . . . . Weapon . | . . . . . . . . . . . . . . . . . . . . . Parts Attached 280 | 6 2 22 5 12 16 16 20 47 29 3 10 . 7 3 20 37 10 10 . 5 Power 30 | 1 . 6 . 2 1 1 1 2 . 2 . . . 1 1 9 1 2 . . Engine 19 | 1 . 6 . . 1 . 1 2 . 2 . . . 1 1 2 . 2 . . Core 6 | . . . . 2 . 1 . . . . . . . . . 2 1 . . . Reactor 5 | . . . . . . . . . . . . . . . . 5 . . . . Propulsion 65 | 2 . 7 1 5 3 7 7 9 4 . 4 . 1 . 4 7 4 . . . Treads 2 | . . . . . . . . 1 . . . . . . . . 1 . . . Leg 61 | 2 . 7 1 5 3 7 7 8 4 . 4 . 1 . 4 7 1 . . . Wheel 2 | . . . . . . . . . . . . . . . . . 2 . . . Hover . | . . . . . . . . . . . . . . . . . . . . . Flight . | . . . . . . . . . . . . . . . . . . . . . Utility 102 | 1 2 4 4 2 9 3 9 24 14 1 3 . 1 2 7 10 . 2 . 4 Device 37 | . 1 2 1 1 3 . 2 6 4 . 1 . 1 1 4 9 . . . 1 Storage 6 | 1 1 1 1 . . . 1 . . . . . . . 1 . . . . . Processor 8 | . . . . . 2 . 2 1 . . . . . . . 1 . . . 2 Hackware 19 | . . . 1 . . 2 3 6 3 1 . . . . 1 . . 1 . 1 Protection 32 | . . 1 1 1 4 1 1 11 7 . 2 . . 1 1 . . 1 . . Artifact . | . . . . . . . . . . . . . . . . . . . . . Weapon 83 | 2 . 5 . 3 3 5 3 12 11 . 3 . 5 . 8 11 5 6 . 1 Energy Gun 16 | 2 . 1 . 3 . . . . . . . . . . . 4 3 3 . . Energy Cannon 42 | . . 4 . . 3 3 1 8 8 . 2 . 3 . 5 3 1 . . 1 Ballistic Gun 5 | . . . . . . . . . . . . . . . . 1 1 3 . . Ballistic Cannon 5 | . . . . . . . . . . . . . . . 2 3 . . . . Launcher . | . . . . . . . . . . . . . . . . . . . . . Special Weapon 15 | . . . . . . 2 2 4 3 . 1 . 2 . 1 . . . . . Impact Weapon . | . . . . . . . . . . . . . . . . . . . . . Slashing Weapon . | . . . . . . . . . . . . . . . . . . . . . Piercing Weapon . | . . . . . . . . . . . . . . . . . . . . . Special Melee Weapon . | . . . . . . . . . . . . . . . . . . . . . Unidentified Prototypes 3 | . . . . . 1 . . . 2 . . . . . . . . . . . Parts Lost 84 | . . 9 . 7 2 . . 17 1 . 3 . 1 . 6 24 2 8 . 4 Power 16 | . . 3 . 1 1 . . 1 . . . . . . . 5 2 1 . 2 Propulsion 25 | . . 2 . 3 1 . . 7 1 . . . . . 1 7 . 2 . 1 Utility 30 | . . 2 . 1 . . . 8 . . 2 . 1 . 4 9 . 3 . . Weapon 13 | . . 2 . 2 . . . 1 . . 1 . . . 1 3 . 2 . 1 Highest Loss Streak 10 | . . 3 . 3 1 . . 10 1 . 2 . 1 . 6 9 2 5 . 4 To Critical Strikes 2 | . . . . . . . . 2 . . . . . . . . . . . . Average Slot Usage (%) 90 | . 86 95 94 98 99 97 99 91 98 100 99 93 98 . 94 87 65 49 52 47 Engine 5 | . 14 10 9 2 4 1 3 6 6 6 6 6 6 . 5 2 3 2 10 6 Core 1 | . . . . 6 2 3 2 . . . . . . . . 1 4 . . . Leg 23 | . 28 32 30 35 29 29 25 20 25 26 26 26 26 . 22 20 9 1 . . Device 10 | . 1 11 10 9 7 7 6 7 6 6 11 13 12 . 23 25 10 5 5 6 Storage 7 | . 14 13 9 9 7 7 8 6 6 6 6 6 6 . 5 5 5 5 5 3 Processor 9 | . . . . . 7 7 10 13 13 13 13 13 13 . 11 11 15 13 10 14 Hackware 8 | . . . 9 9 7 15 19 11 13 12 6 6 6 . 4 3 . 2 5 4 Protection 7 | . . 5 7 9 14 7 6 9 11 13 13 13 13 . 5 . . . . . Energy Gun 2 | . 28 1 . 7 1 . . . . . . . . . . 2 9 6 10 6 Energy Cannon 8 | . . 20 18 10 13 11 9 12 9 6 10 . 7 . 8 . . . . . Special Weapon 1 | . . . . . . 3 3 . 3 6 1 6 3 . . . . . . . Naked Turns 14 | . . . . . . . . . . . . . . . . . . . . 14 Heaviest Build 88 | 12 28 35 37 37 63 48 53 73 61 55 59 48 59 58 74 88 42 36 36 39 Greatest Support 85 | 20 20 39 52 52 56 56 67 75 75 67 67 62 62 62 75 85 38 70 70 70 Greatest Overweight (x) 15 | 2 1 2 . 1 1 1 2 15 1 . 1 . . . 1 1 2 . . . Average Overweight (x) . | . . . . . . . . . . . . . . . . . . . . . Largest Inventory Capacity 15 | 8 15 15 15 15 15 15 15 15 15 15 15 15 15 15 15 15 15 15 15 15 Average Capacity 14 | 7 8 15 15 15 15 15 15 15 15 15 15 15 15 15 15 15 15 15 15 11 Most Carried 15 | 2 8 15 12 15 15 15 15 15 15 15 15 15 15 15 15 15 15 15 15 15 Average Carried 13 | . 4 12 11 14 14 14 14 14 14 15 14 15 14 13 12 14 14 14 15 11 Final Capacity 15 | 8 15 15 15 15 15 15 15 15 15 15 15 15 15 15 15 15 15 15 15 5 Final Carried 15 | 2 7 12 11 15 15 15 15 15 15 15 14 15 15 10 15 12 15 15 15 5 Class Distribution -------------------- 59% | Scavenger-Mutant 27% | Mutant 10% | Bothacker-Mutant Dominant Class ---------------- Mutant | -10/Materials Mutant | -9/Materials Scavenger-Mutant | -8/Materials Scavenger-Mutant | -8/Garrison Scavenger-Mutant | -7/Factory Scavenger-Mutant | -7/Garrison Scavenger-Mutant | -6/Factory Scavenger-Mutant | -6/Garrison Bothacker-Mutant | -6/Factory Scavenger-Mutant | -6/Lower Caves Scavenger-Mutant | -6/Lower Caves Scavenger-Mutant | -6/Data Miner Scavenger-Mutant | -5/Proximity Caves Scavenger-Mutant | -5/Factory Scavenger-Mutant | -5/DSF Scavenger-Mutant | -4/Factory Mutant | -4/Upper Caves Mutant | -4/Upper Caves Mutant | -4/Warlord Derelict-Mutant | -3/Proximity Caves Resources | -11 -10 -9 -8 -8 -7 -7 -6 -6 -6 -6 -6 -6 -5 -5 -5 -4 -4 -4 -4 -3 ----------- Run | Scr Mat Mat Mat Gar Fac Gar Fac Gar Fac Low Low Dat Pro Fac DSF Fac Upp Upp War Pro Matter Collected 4275 | 260 52 218 . 150 139 204 255 473 231 25 305 . 154 . 185 1181 175 215 . 53 Remotely . | . . . . . . . . . . . . . . . . . . . . . Salvage Created 7499 | 86 103 1526 . 679 844 68 270 1040 228 . 452 . 137 . 110 1411 129 334 . 82 Parts 306 | 2 2 84 . 32 24 9 14 37 10 . 16 . 7 . 7 37 10 14 . 1 Haulers Intercepted 3 | . . 1 . . 1 . . . . . . . . . . 1 . . . . Recyclers Shooed 6 | 1 . 1 . . . . . . . . . . . . . 4 . . . . Parts Field Recycled . | . . . . . . . . . . . . . . . . . . . . . Retrieved Matter . | . . . . . . . . . . . . . . . . . . . . . Parts Self-Destructed 33 | . . . . . . . . . . . 5 . 4 . . . 9 14 . 1 Prevented 1 | . . . . . . . . . . . . . . . . . . 1 . . Kills | -11 -10 -9 -8 -8 -7 -7 -6 -6 -6 -6 -6 -6 -5 -5 -5 -4 -4 -4 -4 -3 ------- Run | Scr Mat Mat Mat Gar Fac Gar Fac Gar Fac Low Low Dat Pro Fac DSF Fac Upp Upp War Pro Combat Hostiles Destroyed 149 | . 2 35 . 15 16 2 5 21 4 . 8 . 1 . 2 24 5 8 . 1 Guns 24 | . 2 1 . 6 . . . . . . . . . . . 4 3 8 . . Cannons 111 | . . 33 . 8 13 2 5 19 4 . 8 . 1 . 2 13 2 . . 1 AOE 6 | . . . . . 2 . . . . . . . . . . 4 . . . . Classes Destroyed 18 | 1 2 6 . 1 2 1 2 . 1 . 1 . . . . 1 . . . . Worker 2 | . 1 . . . 1 . . . . . . . . . . . . . . . Tunneler 1 | . . . . . . . . . . . . . . . . 1 . . . . Hauler 3 | . . 1 . . 1 . . . . . . . . . . 1 . . . . Recycler 6 | 1 . 2 . . . . . . . . . . . . . 3 . . . . Operator 3 | . . 3 . . . . . . . . . . . . . . . . . . Watcher 2 | . . 1 . . 1 . . . . . . . . . . . . . . . Swarmer 36 | . . 9 . 3 3 1 . 7 . . 1 . . . . 2 5 5 . . Grunt 64 | . 2 18 . 9 10 . . 5 2 . . . . . . 16 . 2 . . Brawler 2 | . . . . 1 . . . 1 . . . . . . . . . . . . Duelist 6 | . . 2 . . 1 . . 2 . . . . . . . . . . . 1 Protector 2 | . . . . . . . 1 . . . . . . . . 1 . . . . Sentry 14 | . . 6 . 2 . . 1 2 . . . . 1 . . 1 . 1 . . Demolisher 1 | . . . . . . . 1 . . . . . . . . . . . . . Specialist 1 | . . . . . . 1 . . . . . . . . . . . . . . Hunter 8 | . . . . . 1 . 2 4 1 . . . . . . . . . . . Programmer 8 | . . . . . 1 . . . . . 1 . . . 2 4 . . . . Heavy 1 | . . . . . . . . . 1 . . . . . . . . . . . Thug 1 | . . . . . . . . . . . . . 1 . . . . . . . Butcher 5 | . . . . . . . . . . . 5 . . . . . . . . . Mutant 1 | . . . . . . . . . . . 1 . . . . . . . . . Best Kill Streak 9 | 1 2 9 . 5 3 1 2 6 3 . 6 . 1 . 2 4 5 3 . 1 Combat Bots Only 7 | . 2 7 . 5 3 1 2 6 3 . 6 . 1 . 2 4 5 3 . 1 Max Kills in Single Turn 4 | 1 1 2 . 2 2 1 1 1 1 . 1 . 1 . 1 4 1 1 . 1 Gunslinging . | . . . . . . . . . . . . . . . . . . . . . Exploded 4 | . . . . . 1 . . . . . . . . . . 4 . . . . Melee . | . . . . . . . . . . . . . . . . . . . . . Uniques/NPCs Destroyed . | . . . . . . . . . . . . . . . . . . . . . Combat | -11 -10 -9 -8 -8 -7 -7 -6 -6 -6 -6 -6 -6 -5 -5 -5 -4 -4 -4 -4 -3 -------- Run | Scr Mat Mat Mat Gar Fac Gar Fac Gar Fac Low Low Dat Pro Fac DSF Fac Upp Upp War Pro Damage Taken 15798 | . 114 1455 41 957 1120 433 496 2946 503 . 627 . 162 . 774 3855 421 1144 . 750 Core 2443 | . 54 303 21 152 142 66 89 250 6 . 47 . . . 156 519 31 121 . 486 Absorbed by Shields 871 | . . . . . . . . . . . . . . . 8 863 . . . . Reduced by Siege Mode 109 | . . . . . . . . . . . . . . . . . . 87 . 22 Redirected to Shielding 147 | . . 50 . . . . . . . . . . . . . . . 97 . . Regen/Repaired (Parts) 420 | . . . . . . . 172 . 248 . . . . . . . . . . . Core Remaining (%) 68 | 100 78 24 . 68 . 70 . . . . . . 53 . 84 . . . . . Volleys Fired 564 | 5 13 93 . 48 65 18 31 81 38 1 17 6 5 . 15 97 7 20 . 4 Largest 2 | 1 2 2 . 2 2 2 2 2 2 1 2 1 2 . 2 2 2 2 . 2 Hottest 196 | 50 100 120 . 120 180 180 180 180 180 5 180 5 60 . 180 196 128 63 . 165 Shots Fired 1040 | 5 26 186 . 96 128 28 44 146 57 1 32 6 7 . 27 191 15 38 . 7 Gun 180 | 5 26 3 . 46 . . . . . . . . . . . 48 8 38 . 6 Cannon 804 | . . 183 . 50 128 25 28 133 46 . 31 . 5 . 24 143 7 . . 1 Launcher . | . . . . . . . . . . . . . . . . . . . . . Special 56 | . . . . . . 3 16 13 11 1 1 6 2 . 3 . . . . . Kinetic 154 | . . . . . . . . . . . . . . . . 125 7 22 . . Thermal 830 | 5 26 186 . 96 128 25 28 133 46 . 31 . 5 . 24 66 8 16 . 7 Explosive . | . . . . . . . . . . . . . . . . . . . . . Electromagnetic . | . . . . . . . . . . . . . . . . . . . . . Robot Hit Streak 21 | 1 4 12 . 11 13 3 12 20 12 6 21 2 3 . 8 10 3 12 . 19 Robot Miss Streak 9 | 1 2 6 . 4 4 3 2 4 3 . 2 6 2 . 4 9 2 1 . . Penetration Max 1 | . . . . . . . . . . . . . . . . 1 . . . . Secondary Targets 6 | . . . . 2 . . . . . . . . . . . 1 . 3 . . Max Gunslinging Chain 1 | . . . . 1 . . . . . . . . . . . 1 . 1 . . Shots Hit Robots 706 | 3 15 116 . 53 88 14 31 98 37 1 23 2 4 . 17 160 7 30 . 7 Core Hits 359 | 2 6 53 . 27 38 2 7 29 6 . 11 . 2 . 4 151 5 14 . 2 Critical Kills 3 | . . . . . 1 . . 1 . . . . . . . 1 . . . . Critical Parts Destroyed . | . . . . . . . . . . . . . . . . . . . . . Critical Strikes 14 | . 5 . . 3 1 . . 1 . . . . . . . 2 . 2 . . Burn 11 | . 5 . . 3 . . . . . . . . . . . 1 . 2 . . Meltdown 3 | . . . . . 1 . . 1 . . . . . . . 1 . . . . Melee Attacks . | . . . . . . . . . . . . . . . . . . . . . Impact . | . . . . . . . . . . . . . . . . . . . . . Slashing . | . . . . . . . . . . . . . . . . . . . . . Piercing . | . . . . . . . . . . . . . . . . . . . . . Sneak Attacks . | . . . . . . . . . . . . . . . . . . . . . Combat Hostiles . | . . . . . . . . . . . . . . . . . . . . . Follow-up Attacks . | . . . . . . . . . . . . . . . . . . . . . Damage Inflicted 19782 | 37 196 2177 . 883 2925 511 911 2978 1076 . 835 . 81 . 784 5302 203 631 . 252 Guns 2547 | 37 191 37 . 431 . . . . . . . . . . . 934 70 631 . 216 Cannons 15641 | . . 2107 . 452 2518 511 911 2978 1076 . 835 . 81 . 784 3219 133 . . 36 Explosions 1536 | . . . . . 407 . . . . . . . . . . 1129 . . . . Melee . | . . . . . . . . . . . . . . . . . . . . . Ramming 58 | . 5 33 . . . . . . . . . . . . . 20 . . . . Kinetic 3399 | . . . . . . . . . . . . . . . . 2962 70 367 . . Thermal 16200 | 37 191 2144 . 883 2800 511 911 2978 1076 . 835 . 81 . 784 2320 133 264 . 252 Explosive . | . . . . . . . . . . . . . . . . . . . . . Electromagnetic 125 | . . . . . 125 . . . . . . . . . . . . . . . Impact . | . . . . . . . . . . . . . . . . . . . . . Slashing . | . . . . . . . . . . . . . . . . . . . . . Piercing . | . . . . . . . . . . . . . . . . . . . . . Highest Corruption 13 | . . 1 . . 1 1 1 1 2 2 5 5 5 . . 13 13 13 13 . Average Corruption 3 | . . 1 . . 1 1 1 1 1 2 4 5 5 . . 4 13 13 13 . Corruption Purged . | . . . . . . . . . . . . . . . . . . . . . Corruption Blocked . | . . . . . . . . . . . . . . . . . . . . . Effects 120 | . . . . . 5 4 6 5 8 8 17 3 4 . . 15 20 24 1 . Message Errors 26 | . . . . . 1 1 2 1 1 1 4 . 2 . . 6 . 7 . . Matter Fused 40 | . . . . . 2 . 2 1 3 3 2 3 1 . . 3 9 10 1 . Heat Flow Errors 12 | . . . . . . 1 . 1 1 2 2 . . . . . 2 3 . . Energy Discharges 13 | . . . . . . 1 1 1 . 1 4 . . . . 1 3 1 . . Parts Rejected 4 | . . . . . . . . . 1 . . . . . . 1 1 1 . . Data Loss (minor) 10 | . . . . . . 1 1 1 . 1 1 . . . . 1 3 1 . . Data Loss (major) 2 | . . . . . 2 . . . . . . . . . . . . . . . Misfires 3 | . . . . . . . . . 1 . . . . . . 1 1 . . . Alerts 4 | . . . . . . . . . . . 3 . . . . . . 1 . . Misdirections 1 | . . . . . . . . . . . . . . . . . 1 . . . Weapon Failures 5 | . . . . . . . . . 1 . 1 . 1 . . 2 . . . . Overload Shots 110 | . . . . . 4 11 22 18 18 . 10 . . . 14 7 1 . . 5 Effects 14 | . . . . . . 4 6 . 1 . 1 . . . 1 . . . . 1 Energy Bleed 6 | . . . . . . . 3 . . . 1 . . . 1 . . . . 1 Heat Surge 5 | . . . . . . 3 2 . . . . . . . . . . . . . Short Circuit 3 | . . . . . . 1 1 . 1 . . . . . . . . . . . Overflow Damage 364 | . . 5 . 16 61 . 34 62 73 . 25 . . . 5 74 9 . . . Projectiles 293 | . . 5 . 16 61 . 34 62 73 . 25 . . . 5 3 9 . . . Explosions 71 | . . . . . . . . . . . . . . . . 71 . . . . Melee . | . . . . . . . . . . . . . . . . . . . . . Knockbacks 48 | . . . . . . . . . . . . . . . . 48 . . . . Impact . | . . . . . . . . . . . . . . . . . . . . . Kinetic 45 | . . . . . . . . . . . . . . . . 45 . . . . Secondary 3 | . . . . . . . . . . . . . . . . 3 . . . . Self-Inflicted Damage 243 | . . . . . 10 . . . . . . . . . . 233 . . . . Shots 4 | . . . . . 1 . . . . . . . . . . 3 . . . . Rammed . | . . . . . . . . . . . . . . . . . . . . . Targets Rammed 12 | . 2 7 . . . . . . . . . . . . . 3 . . . . Kicked 12 | . 2 7 . . . . . . . . . . . . . 3 . . . . Crushed . | . . . . . . . . . . . . . . . . . . . . . Highest Temperature 375 | . 375 264 . 227 69 310 341 331 252 232 243 . 18 . 60 312 164 256 . 212 Average Temperature 80 | . 135 62 . 75 19 117 118 74 92 131 59 . 12 . 23 85 73 107 . 99 Received Heat Transfer 3619 | . 63 462 . 522 504 18 141 525 90 . 36 . 30 . 220 720 9 117 . 162 Effects 4 | . 2 . . . . . . . . . . . . . . 2 . . . . Shutdowns 1 | . 1 . . . . . . . . . . . . . . . . . . . Interference 2 | . . . . . . . . . . . . . . . . 2 . . . . Matter Decay 1 | . 1 . . . . . . . . . . . . . . . . . . . Siege Activations 3 | . . . . . . . . . . . . . . . . . . 2 . 1 Total Turns 46 | . . . . . . . . . . . . . . . . . . 42 . 4 Longest Duration 23 | . . . . . . . . . . . . . . . . . . 23 . 4 Robots Corrupted . | . . . . . . . . . . . . . . . . . . . . . Combat Hostiles . | . . . . . . . . . . . . . . . . . . . . . Parts Fried . | . . . . . . . . . . . . . . . . . . . . . Impact Corruptions . | . . . . . . . . . . . . . . . . . . . . . Robots Melted 8 | . . 1 . 1 1 . . 2 . . . . . . . 3 . . . . Combat Hostiles 8 | . . 1 . 1 1 . . 2 . . . . . . . 3 . . . . Parts Melted 47 | . . 12 . 2 8 . . 8 3 . 2 . . . 1 10 . . . 1 Heat Transferred 23264 | 111 925 4514 . 2272 3556 535 948 3521 1216 . 942 . 111 . 796 2627 200 666 . 324 Parts Sabotaged . | . . . . . . . . . . . . . . . . . . . . . Parts Stolen . | . . . . . . . . . . . . . . . . . . . . . Parts Stripped . | . . . . . . . . . . . . . . . . . . . . . Power Chain Reactions . | . . . . . . . . . . . . . . . . . . . . . Missiles Intercepted . | . . . . . . . . . . . . . . . . . . . . . Alert | -11 -10 -9 -8 -8 -7 -7 -6 -6 -6 -6 -6 -6 -5 -5 -5 -4 -4 -4 -4 -3 ------- Run | Scr Mat Mat Mat Gar Fac Gar Fac Gar Fac Low Low Dat Pro Fac DSF Fac Upp Upp War Pro Peak Influence 1178 | 5 76 888 329 743 828 1166 829 1178 687 . . . . 30 338 932 . . . . Initial 618 | . 3 31 311 213 389 579 611 576 618 . . . . 25 21 177 . . . . Average 599 | 3 31 484 314 511 481 892 675 941 431 . . . . 28 179 588 . . . . Maximum Alert Level 4 | . . 3 1 3 3 4 3 4 2 . . . . . 1 3 . . . . Low Security (%) 11 | 100 100 18 . . . . . . . . . . . 100 47 14 . . . . Level 1 18 | . . 12 100 23 51 . . . 55 . . . . . 52 6 . . . . Level 2 31 | . . 52 . 68 24 18 64 6 43 . . . . . . 49 . . . . Level 3 33 | . . 16 . 8 23 48 35 84 . . . . . . . 29 . . . . Level 4 4 | . . . . . . 32 . 8 . . . . . . . . . . . . Level 5 . | . . . . . . . . . . . . . . . . . . . . . High Security . | . . . . . . . . . . . . . . . . . . . . . Max Security . | . . . . . . . . . . . . . . . . . . . . . Sterilizations 1 | . . . . . . . . . . . . . . . 1 . . . . . Squads Dispatched 27 | . . 6 . . 3 . 4 . 5 . . . . . 1 8 . . . . Investigation 7 | . . 3 . . . . 1 . 2 . . . . . . 1 . . . . Extermination 3 | . . . . . 1 . . . . . . . . . . 2 . . . . Reinforcement 12 | . . 3 . . 2 . 1 . 3 . . . . . 1 2 . . . . Assault 5 | . . . . . . . 2 . . . . . . . . 3 . . . . Garrison . | . . . . . . . . . . . . . . . . . . . . . Intercept . | . . . . . . . . . . . . . . . . . . . . . Searches Triggered . | . . . . . . . . . . . . . . . . . . . . . Data Miner Redirects 1 | . . . . . . . . . . . . . . . . 1 . . . . Construction Impeded 1 | . . . . . . . . . . . . . . . . 1 . . . . Haulers Reinforced 2 | . . . . . 1 . . . . . . . . . . 1 . . . . Active Scanning Responses . | . . . . . . . . . . . . . . . . . . . . . Cargo Convoy Interrupts . | . . . . . . . . . . . . . . . . . . . . . Stealth | -11 -10 -9 -8 -8 -7 -7 -6 -6 -6 -6 -6 -6 -5 -5 -5 -4 -4 -4 -4 -3 --------- Run | Scr Mat Mat Mat Gar Fac Gar Fac Gar Fac Low Low Dat Pro Fac DSF Fac Upp Upp War Pro Distress Signals 6 | . . 1 . . . . . . 3 . . . . . . 2 . . . . Communications Jammed . | . . . . . . . . . . . . . . . . . . . . . Distress Signals . | . . . . . . . . . . . . . . . . . . . . . Times Spotted 273 | . 3 46 1 15 24 17 22 30 18 . 10 . 3 . 7 52 7 8 . 10 Peak Tracking Total 9 | . 2 4 1 5 4 3 7 6 5 . 6 . 3 . 4 9 5 5 . 9 Tactical Retreats 18 | . . 3 . . 4 2 . 2 3 . . . . . 1 1 2 . . . Traps | -11 -10 -9 -8 -8 -7 -7 -6 -6 -6 -6 -6 -6 -5 -5 -5 -4 -4 -4 -4 -3 ------- Run | Scr Mat Mat Mat Gar Fac Gar Fac Gar Fac Low Low Dat Pro Fac DSF Fac Upp Upp War Pro Traps Triggered 20 | . . 1 . 1 . 4 1 6 3 . . . . . 2 2 . . . . Indirectly . | . . . . . . . . . . . . . . . . . . . . . Trap Hack Attempts . | . . . . . . . . . . . . . . . . . . . . . Triggered . | . . . . . . . . . . . . . . . . . . . . . Disarmed . | . . . . . . . . . . . . . . . . . . . . . Reprogrammed . | . . . . . . . . . . . . . . . . . . . . . Reused . | . . . . . . . . . . . . . . . . . . . . . Traps Extracted . | . . . . . . . . . . . . . . . . . . . . . Installed . | . . . . . . . . . . . . . . . . . . . . . Triggered 1 | . . . . . . . . . . . . . . . . . . 1 . . Machines | -11 -10 -9 -8 -8 -7 -7 -6 -6 -6 -6 -6 -6 -5 -5 -5 -4 -4 -4 -4 -3 ---------- Run | Scr Mat Mat Mat Gar Fac Gar Fac Gar Fac Low Low Dat Pro Fac DSF Fac Upp Upp War Pro Machines Disabled 40 | . . 3 . 3 15 1 2 5 . . . . . . . 11 . . . . Max in Single Turn 5 | . . 1 . 1 5 1 1 1 . . . . . . . 5 . . . . Garrison Relay 8 | . . . . 3 . 1 . 4 . . . . . . . . . . . . Machines Sabotaged . | . . . . . . . . . . . . . . . . . . . . . Garrisons Compromised . | . . . . . . . . . . . . . . . . . . . . . Overloaded Fab Kills . | . . . . . . . . . . . . . . . . . . . . . Hacking | -11 -10 -9 -8 -8 -7 -7 -6 -6 -6 -6 -6 -6 -5 -5 -5 -4 -4 -4 -4 -3 --------- Run | Scr Mat Mat Mat Gar Fac Gar Fac Gar Fac Low Low Dat Pro Fac DSF Fac Upp Upp War Pro Machines Accessed 25 | . . 6 1 . 2 . 3 . 4 . . 4 . 1 . 3 . . . 1 Terminals 15 | . . 6 . . 1 . 2 . 2 . . . . 1 . 2 . . . 1 Fabricators 1 | . . . . . . . . . 1 . . . . . . . . . . . Repair Stations 2 | . . . . . . . . . 1 . . . . . . 1 . . . . Recycling Units . | . . . . . . . . . . . . . . . . . . . . . Scanalyzers . | . . . . . . . . . . . . . . . . . . . . . Garrison Access 3 | . . . 1 . 1 . 1 . . . . . . . . . . . . . Total Hacks 84 | . . 19 1 . 2 . 8 . 12 . . 31 . 4 . 6 . . . 1 Successful 58 | . . 10 1 . 2 . 3 . 6 . . 31 . 1 . 3 . . . 1 Failed 26 | . . 9 . . . . 5 . 6 . . . . 3 . 3 . . . . Catastrophic 4 | . . 3 . . . . 1 . . . . . . . . . . . . . Database Lockouts . | . . . . . . . . . . . . . . . . . . . . . Manual 20 | . . 12 . . . . 3 . 3 . . . . . . . . . . 2 Terminals 41 | . . 19 . . 1 . 5 . 6 . . . . 4 . 5 . . . 1 Fabricators 3 | . . . . . . . . . 3 . . . . . . . . . . . Repair Stations 4 | . . . . . . . . . 3 . . . . . . 1 . . . . Recycling Units . | . . . . . . . . . . . . . . . . . . . . . Scanalyzers . | . . . . . . . . . . . . . . . . . . . . . Garrison Access 5 | . . . 1 . 1 . 3 . . . . . . . . . . . . . Terminal Hacks 50 | . . 9 . . 1 . 2 . 3 . . 31 . 1 . 2 . . . 1 Record 12 | . . . . . . . . . . . . 11 . . . . . . . 1 Part Schematic 11 | . . 1 . . . . . . . . . 10 . . . . . . . . Robot Schematic 7 | . . . . . . . . . . . . 7 . . . . . . . . Robot Analysis 1 | . . 1 . . . . . . . . . . . . . . . . . . Prototype ID Bank 5 | . . 2 . . . . . . . . . 3 . . . . . . . . Open DSF 3 | . . . . . 1 . . . . . . . . 1 . 1 . . . . Level Access Points 1 | . . . . . . . 1 . . . . . . . . . . . . . Branch Access Points 1 | . . . . . . . . . 1 . . . . . . . . . . . Terminal Index 1 | . . 1 . . . . . . . . . . . . . . . . . . Unreport Threat 2 | . . . . . . . . . 2 . . . . . . . . . . . Locate Traps 1 | . . 1 . . . . . . . . . . . . . . . . . . Registered Components 1 | . . 1 . . . . . . . . . . . . . . . . . . Zone Layout 4 | . . 2 . . . . 1 . . . . . . . . 1 . . . . Fabricator Hacks . | . . . . . . . . . . . . . . . . . . . . . Repair Station Hacks 2 | . . . . . . . . . 1 . . . . . . 1 . . . . Scan Component 1 | . . . . . . . . . 1 . . . . . . . . . . . Refit 1 | . . . . . . . . . . . . . . . . 1 . . . . Recycling Unit Hacks . | . . . . . . . . . . . . . . . . . . . . . Scanalyzer . | . . . . . . . . . . . . . . . . . . . . . Garrison Access Hacks 3 | . . . 1 . 1 . 1 . . . . . . . . . . . . . Unlock Access 3 | . . . 1 . 1 . 1 . . . . . . . . . . . . . Unauthorized Hacks 3 | . . 1 . . . . . . 2 . . . . . . . . . . . Terminals 1 | . . 1 . . . . . . . . . . . . . . . . . . Track 1 | . . 1 . . . . . . . . . . . . . . . . . . Fabricators 2 | . . . . . . . . . 2 . . . . . . . . . . . Report 1 | . . . . . . . . . 1 . . . . . . . . . . . Haulers 1 | . . . . . . . . . 1 . . . . . . . . . . . Repair Stations . | . . . . . . . . . . . . . . . . . . . . . Recycling Units . | . . . . . . . . . . . . . . . . . . . . . Scanalyzers . | . . . . . . . . . . . . . . . . . . . . . Garrison Access . | . . . . . . . . . . . . . . . . . . . . . Data Cores Recovered . | . . . . . . . . . . . . . . . . . . . . . Used . | . . . . . . . . . . . . . . . . . . . . . Hacking Detections 18 | . . 5 . . 1 . 3 . 4 . . . . 1 . 3 . . . 1 Full Trace Events 7 | . . 3 . . . . 1 . 2 . . . . . . 1 . . . . Feedback Events 1 | . . . . . . . 1 . . . . . . . . . . . . . Corruption 1 | . . . . . . . 1 . . . . . . . . . . . . . Feedback Blocked . | . . . . . . . . . . . . . . . . . . . . . Robot Schematics Acquired 7 | . . . . . . . . . . . . 7 . . . . . . . . Robots Built . | . . . . . . . . . . . . . . . . . . . . . Authchips . | . . . . . . . . . . . . . . . . . . . . . Time . | . . . . . . . . . . . . . . . . . . . . . Total Robot Build Rating . | . . . . . . . . . . . . . . . . . . . . . Part Schematics Acquired 11 | . . 1 . . . . . . . . . 10 . . . . . . . . Parts Built . | . . . . . . . . . . . . . . . . . . . . . Authchips . | . . . . . . . . . . . . . . . . . . . . . Time . | . . . . . . . . . . . . . . . . . . . . . Total Part Build Rating . | . . . . . . . . . . . . . . . . . . . . . Parts Repaired . | . . . . . . . . . . . . . . . . . . . . . Time . | . . . . . . . . . . . . . . . . . . . . . Parts Recycled . | . . . . . . . . . . . . . . . . . . . . . Recycled Matter . | . . . . . . . . . . . . . . . . . . . . . Retrieved Matter . | . . . . . . . . . . . . . . . . . . . . . Retrieved Components . | . . . . . . . . . . . . . . . . . . . . . Parts Scanalyzed . | . . . . . . . . . . . . . . . . . . . . . Part Schematics Acquired . | . . . . . . . . . . . . . . . . . . . . . Parts Damaged . | . . . . . . . . . . . . . . . . . . . . . Bothacking | -11 -10 -9 -8 -8 -7 -7 -6 -6 -6 -6 -6 -6 -5 -5 -5 -4 -4 -4 -4 -3 ------------ Run | Scr Mat Mat Mat Gar Fac Gar Fac Gar Fac Low Low Dat Pro Fac DSF Fac Upp Upp War Pro Used RIF Installer 3 | . . . . 1 . 1 . 1 . . . . . . . . . . . . Zone Cloak 1 | . . . . . . 1 . . . . . . . . . . . . . . Structural Interface 1 | . . . . . . . . 1 . . . . . . . . . . . . Robots Hacked 35 | . . . . . . 2 9 10 8 1 1 1 2 . 1 . . . . . Non-combat 7 | . . . . . . . 4 . 2 1 . . . . . . . . . . Combat 28 | . . . . . . 2 5 10 6 . 1 1 2 . 1 . . . . . Robot Hacks Applied 41 | . . . . . . 2 11 10 11 1 1 2 2 . 1 . . . . . parse_system 8 | . . . . . . . 3 . . 1 1 2 1 . . . . . . . find_dsf 1 | . . . . . . . . . 1 . . . . . . . . . . . drop_inventory 1 | . . . . . . . 1 . . . . . . . . . . . . . locate_stockpiles 1 | . . . . . . . . . 1 . . . . . . . . . . . map_route 1 | . . . . . . . 1 . . . . . . . . . . . . . spike_heat 1 | . . . . . . . . . 1 . . . . . . . . . . . disable_weapons 5 | . . . . . . . 2 3 . . . . . . . . . . . . overwrite_iff 4 | . . . . . . . 1 1 1 . . . 1 . . . . . . . formatsys_low 3 | . . . . . . . 1 . 2 . . . . . . . . . . . formatsys_high 16 | . . . . . . 2 2 6 5 . . . . . 1 . . . . . Relay Couplers Released 30 | . . . . 12 . 3 . 15 . . . . . . . . . . . . Machine Destruction 30 | . . . . 12 . 3 . 15 . . . . . . . . . . . . Attached 14 | . . . . . . 2 2 6 3 1 . . . . . . . . . . Fabnet Peak Effective % . | . . . . . . . . . . . . . . . . . . . . . Robots Rewired 8 | . . . . . . 6 . . . . 2 . . . . . . . . . Allies Hacked . | . . . . . . . . . . . . . . . . . . . . . Hacks Repelled . | . . . . . . . . . . . . . . . . . . . . . Allies | -11 -10 -9 -8 -8 -7 -7 -6 -6 -6 -6 -6 -6 -5 -5 -5 -4 -4 -4 -4 -3 -------- Run | Scr Mat Mat Mat Gar Fac Gar Fac Gar Fac Low Low Dat Pro Fac DSF Fac Upp Upp War Pro Total Allies 32 | . . . . . . 8 4 7 8 . 2 . 2 . 1 . . . . . Largest Group 7 | . . . . . . 7 6 3 3 1 2 2 3 2 2 1 . . . . Highest-Rated Group 191 | . . . . . . 187 191 87 87 23 62 62 158 127 127 96 . . . . Highest-Rated Ally 96 | . . . . . . 43 43 32 43 23 31 31 96 96 96 96 . . . . Total Orders 16 | . . . . . . . 11 . 4 1 . . . . . . . . . . STAY 1 | . . . . . . . 1 . . . . . . . . . . . . . FOLLOW 2 | . . . . . . . 2 . . . . . . . . . . . . . AID 12 | . . . . . . . 8 . 4 . . . . . . . . . . . DROP 1 | . . . . . . . . . . 1 . . . . . . . . . . Ally Attacks 292 | . . . . . . 67 68 21 55 . 11 . 12 . 25 33 . . . . Total Damage 7584 | . . . . . . 1773 1525 366 691 . 150 . 355 . 966 1758 . . . . Kills 56 | . . . . . . 19 9 3 4 . 2 . 1 . 9 9 . . . . Allies Corrupted 1 | . . . . . . . . . . . . . . . 1 . . . . . Allies Melted . | . . . . . . . . . . . . . . . . . . . . . Intel | -11 -10 -9 -8 -8 -7 -7 -6 -6 -6 -6 -6 -6 -5 -5 -5 -4 -4 -4 -4 -3 ------- Run | Scr Mat Mat Mat Gar Fac Gar Fac Gar Fac Low Low Dat Pro Fac DSF Fac Upp Upp War Pro Robot Analysis Total 1 | . . 1 . . . . . . . . . . . . . . . . . . Derelict Logs Recovered 7 | . . . . . . . . . . 1 2 . 1 . . . 2 1 . . Drone Launches . | . . . . . . . . . . . . . . . . . . . . . Drone Recoveries . | . . . . . . . . . . . . . . . . . . . . . Exploration | -11 -10 -9 -8 -8 -7 -7 -6 -6 -6 -6 -6 -6 -5 -5 -5 -4 -4 -4 -4 -3 ------------- Run | Scr Mat Mat Mat Gar Fac Gar Fac Gar Fac Low Low Dat Pro Fac DSF Fac Upp Upp War Pro Turns Passed 11340 | 76 372 800 95 666 1046 710 743 1820 806 429 594 125 248 8 429 1094 531 479 106 163 Spaces Moved 6615 | 47 263 348 72 399 590 374 472 962 463 346 398 94 185 3 197 449 463 271 67 152 Core 114 | 14 . . . . . . . 2 . . . . . . . . . . . 98 Treads 319 | . . . . . . . . . . . . . . . . . . 198 67 54 Legs 6174 | 33 263 348 72 399 590 374 472 960 463 346 398 94 185 3 197 449 455 73 . . Wheels 8 | . . . . . . . . . . . . . . . . . 8 . . . Hover . | . . . . . . . . . . . . . . . . . . . . . Flight . | . . . . . . . . . . . . . . . . . . . . . Fastest Speed 50 | 50 120 120 120 120 120 97 97 120 120 122 122 122 122 122 120 105 105 105 160 50 Average Speed 131 | 118 122 121 120 120 128 149 117 152 121 122 122 122 122 122 153 159 105 145 160 89 Slowest Speed 800 | 150 190 260 120 190 190 183 260 800 190 122 193 122 122 122 193 190 185 160 160 160 Overloaded Moves . | . . . . . . . . . . . . . . . . . . . . . Propulsion Burnouts . | . . . . . . . . . . . . . . . . . . . . . Robots Hopped . | . . . . . . . . . . . . . . . . . . . . . Cave-ins Triggered . | . . . . . . . . . . . . . . . . . . . . . Exploration Rate (%) 43 | 4 36 49 7 44 19 63 16 89 16 66 61 76 43 . 96 16 69 52 15 35 Regions Visited 20 Branch Regions 8 Pre-discovered Areas 2 | . . . . . . . . . . . . 1 . . . . 1 . . . Known Exits Taken 7 | . . . 1 . 1 . 1 . 1 1 . . 1 1 . . . . . . Unknown Exits Taken 9 | 1 1 1 . . . . . . . . 1 1 . . . 1 1 1 1 . Scrap Searched 6 | . . . . . . . . . . 1 . . . . . . 2 2 . 1 Spaces Dug 53 | . . . . . 1 . 2 . 2 . . . . . . 48 . . . . Terrain Destroyed 192 | . . . . . 49 4 6 4 11 . 5 . 1 . 4 102 5 1 . . Melee . | . . . . . . . . . . . . . . . . . . . . . Projectile 62 | . . . . . 10 4 6 4 11 . 5 . 1 . 4 11 5 1 . . AOE 130 | . . . . . 39 . . . . . . . . . . 91 . . . . Terrain Rammed . | . . . . . . . . . . . . . . . . . . . . . Walls Destroyed . | . . . . . . . . . . . . . . . . . . . . . Machines Disabled . | . . . . . . . . . . . . . . . . . . . . . Actions | -11 -10 -9 -8 -8 -7 -7 -6 -6 -6 -6 -6 -6 -5 -5 -5 -4 -4 -4 -4 -3 --------- Run | Scr Mat Mat Mat Gar Fac Gar Fac Gar Fac Low Low Dat Pro Fac DSF Fac Upp Upp War Pro Total 8240 | 59 287 539 81 490 755 497 625 1167 650 351 472 102 198 8 298 626 484 315 66 170 Wait 437 | . . 43 . 5 56 23 83 26 94 1 20 2 . . 40 23 . 13 . 8 Move 6595 | 46 262 347 71 398 589 373 472 960 462 345 397 93 184 2 196 448 462 270 66 152 Hop . | . . . . . . . . . . . . . . . . . . . . . Pick Up 112 | 2 6 14 2 14 11 3 6 15 8 . 5 . 1 . 12 6 4 2 . 1 Fast Attach 105 | 6 1 7 . 5 4 5 8 20 10 1 2 . 1 . 6 19 2 5 . 3 Attach 68 | . . 8 3 6 5 2 2 10 7 . 3 . 1 2 4 9 2 2 . 2 Detach 15 | . . 4 1 1 3 . . 1 2 . . 1 . . . 1 1 . . . Swap 107 | . 1 7 2 1 7 9 10 17 12 2 5 . 5 1 10 9 6 3 . . Drop 122 | . 2 9 2 8 15 11 13 17 14 1 5 . 1 3 10 11 . . . . Fire 564 | 5 13 93 . 48 65 18 31 81 38 1 17 6 5 . 15 97 7 20 . 4 Melee . | . . . . . . . . . . . . . . . . . . . . . Ram . | . . . . . . . . . . . . . . . . . . . . . Kick 12 | . 2 7 . . . . . . . . . . . . . 3 . . . . Crush . | . . . . . . . . . . . . . . . . . . . . . Escape Stasis 50 | . . . . 4 . 21 . 20 . . . . . . 5 . . . . . Rewire 53 | . . . . . . 32 . . 3 . 18 . . . . . . . . . Trap . | . . . . . . . . . . . . . . . . . . . . . Miscellaneous . | . . . . . . . . . . . . . . . . . . . . . Route ------- -11/Scrapyard -10/Materials -9/Materials -8/Materials -8/Garrison (discovered 2 exits: *Fac x2) -7/Factory -7/Garrison (discovered 2 exits: *Fac x2) -6/Factory (discovered 5 exits: Fac x4 / Gar) -6/Garrison (discovered 3 exits: *Fac x3) -6/Factory (discovered 3 exits: *Fac / *Low x2) -6/Lower Caves -6/Lower Caves (discovered 2 exits: *Fac / *Dat) -6/Data Miner -5/Proximity Caves -5/Factory (discovered 2 exits: Fac / DSF) -5/DSF -4/Factory (discovered 2 exits: [*Upp] / Arm) -4/Upper Caves -4/Upper Caves -4/Warlord -3/Proximity Caves History --------- Turn | Location | Event 13 | -11/Scrapyard | Discovered new exit (range 15) 77 | -11/Scrapyard | Entered Materials 317 | -10/Materials | Build established: Mutant 379 | -10/Materials | Discovered new exit (range 10) 449 | -10/Materials | Entered another Materials area 449 | -9/Materials | Evolved 2 slots: Propulsion x1, Utility x1 653 | -9/Materials | Destroyed 7 combat bots 954 | -9/Materials | Core integrity fell below 50% 987 | -9/Materials | Lost 3 parts (2n1w) 1242 | -9/Materials | Discovered new exit (range 6) 1249 | -9/Materials | Entered another Materials area 1249 | -8/Materials | Evolved 2 slots: Propulsion x1, Utility x1 1305 | -8/Materials | Identified exit to Garrison 1344 | -8/Materials | Entered Garrison 1380 | -8/Garrison | Triggered checkpoint 1397 | -8/Garrison | Garrison Relay disabled 1546 | -8/Garrison | Build established: Scavenger-Mutant 1548 | -8/Garrison | Triggered checkpoint 1596 | -8/Garrison | Discovered new exit (range 14) 1646 | -8/Garrison | Triggered checkpoint 1649 | -8/Garrison | Garrison Relay disabled 1809 | -8/Garrison | Lost 3 parts (1p2n) 1873 | -8/Garrison | Discovered new exit (range 11) 1892 | -8/Garrison | Installed Relay Interface Framework 1928 | -8/Garrison | Triggered checkpoint 1955 | -8/Garrison | Garrison Relay disabled 2010 | -8/Garrison | Entered Factory 2010 | -7/Factory | Evolved 2 slots: Utility x2 3024 | -7/Factory | Identified exit to Garrison 3056 | -7/Factory | Entered Garrison 3380 | -7/Garrison | Triggered checkpoint 3390 | -7/Garrison | Triggered checkpoint 3398 | -7/Garrison | Triggered checkpoint 3410 | -7/Garrison | Triggered checkpoint 3526 | -7/Garrison | Triggered checkpoint 3573 | -7/Garrison | Garrison Relay disabled 3629 | -7/Garrison | Discovered new exit (range 10) 3748 | -7/Garrison | Discovered new exit (range 8) 3761 | -7/Garrison | Expanded RIF knowledge: Zone Cloak 3766 | -7/Garrison | Entered Factory 3766 | -6/Factory | Accompanied by 3 allies 3766 | -6/Factory | Evolved 2 slots: Utility x2 4069 | -6/Factory | Identified exit to Factory 4116 | -6/Factory | First assault squad dispatched 4509 | -6/Factory | Identified exit to Garrison 4509 | -6/Factory | Entered Garrison 4532 | -6/Garrison | Triggered checkpoint 4552 | -6/Garrison | Garrison Relay disabled 4674 | -6/Garrison | Triggered checkpoint 4966 | -6/Garrison | Discovered new exit (range 21) 5256 | -6/Garrison | Triggered checkpoint 5285 | -6/Garrison | Garrison Relay disabled 5406 | -6/Garrison | Triggered checkpoint 5427 | -6/Garrison | Triggered checkpoint 5517 | -6/Garrison | Lost 10 parts (1p4n4u1w) 5583 | -6/Garrison | Build established: Bothacker-Mutant 5768 | -6/Garrison | Triggered checkpoint 5968 | -6/Garrison | Garrison Relay disabled 6037 | -6/Garrison | Discovered new exit (range 13) 6146 | -6/Garrison | Build established: Scavenger-Mutant 6175 | -6/Garrison | Garrison Relay disabled 6178 | -6/Garrison | Triggered checkpoint 6279 | -6/Garrison | Discovered new exit (range 18) 6290 | -6/Garrison | Triggered checkpoint 6323 | -6/Garrison | Expanded RIF knowledge: Structural Interface 6329 | -6/Garrison | Entered Factory 6329 | -6/Factory | Accompanied by 3 allies 6439 | -6/Factory | Identified exit to Lower Caves 6469 | -6/Factory | Build established: Bothacker-Mutant 6722 | -6/Factory | Found Prototype Device 6722 | -6/Factory | Identified Active Sensor Suite 6822 | -6/Factory | Discovered exit to Factory (range 9) 7125 | -6/Factory | Build established: Scavenger-Mutant 7135 | -6/Factory | Entered Lower Caves 7135 | -6/Lower Caves | Accompanied by 1 ally 7183 | -6/Lower Caves | Identified exit to Lower Caves 7564 | -6/Lower Caves | Entered another Lower Caves area 7574 | -6/Lower Caves | Attacked by a faux Warlord 7593 | -6/Lower Caves | Discovered exit to Factory (range 4) 7782 | -6/Lower Caves | Learned Factory terminal intel 8091 | -6/Lower Caves | Learned location of 1 exit from Factory 8134 | -6/Lower Caves | Discovered new exit (range 18) 8158 | -6/Lower Caves | Entered Data Miner 8158 | -6/Data Miner | Accompanied by 2 allies 8159 | -6/Data Miner | Discovered new exit (range 6) 8175 | -6/Data Miner | Met Data Miner 8222 | -6/Data Miner | Learned location of Section 7 (-2) 8222 | -6/Data Miner | Acquired the access code to Warlord's prototype stash 8246 | -6/Data Miner | Received God Mode back door access code from Data Miner 8283 | -6/Data Miner | Entered Proximity Caves 8283 | -5/Proximity Caves | Accompanied by 2 allies 8343 | -5/Proximity Caves | Escorted by Enhanced Grunt 8354 | -5/Proximity Caves | Attracted the attention of an 0b10 checkpoint 8521 | -5/Proximity Caves | Discovered exit to Factory (range 5) 8531 | -5/Proximity Caves | Entered Factory 8531 | -5/Factory | Accompanied by 2 allies 8531 | -5/Factory | Evolved 2 slots: Utility x2 8532 | -5/Factory | Identified exit to Factory 8533 | -5/Factory | Loaded intel: 27 terminal locations 8534 | -5/Factory | Identified exit to DSF 8539 | -5/Factory | Entered DSF 8539 | -5/DSF | Accompanied by 2 allies 8549 | -5/DSF | Discovered exit to Factory (range 21) 8576 | -5/DSF | Additional patrols routed to DSF 8607 | -5/DSF | Lost 6 parts (1n4u1w) 8743 | -5/DSF | P-70 Sage assimilated allied Soldier 6a 8864 | -5/DSF | Sterilization system engaged 8884 | -5/DSF | Ambient heat levels rising (+10) 8899 | -5/DSF | Ambient heat levels rising (+10) 8914 | -5/DSF | Ambient heat levels rising (+10) 8929 | -5/DSF | Ambient heat levels rising (+10) 8944 | -5/DSF | Ambient heat levels rising (+10) 8959 | -5/DSF | Ambient heat levels rising (+10) 8968 | -5/DSF | Entered Factory 8968 | -4/Factory | Accompanied by 1 ally 8968 | -4/Factory | Evolved 2 slots: Power x1, Utility x1 8969 | -4/Factory | Identified exit to Armory 9142 | -4/Factory | Build established: Mutant 9468 | -4/Factory | First assault squad dispatched 9663 | -4/Factory | Incoming assault squad redirected 9745 | -4/Factory | Build established: Scavenger-Mutant 9751 | -4/Factory | Lost 9 parts (2p4u3w) 9943 | -4/Factory | Lost 3 parts (1p2n) 9977 | -4/Factory | Discovered new exit (range 22) 10041 | -4/Factory | System corruption reached 10% 10062 | -4/Factory | Entered Upper Caves 10062 | -4/Upper Caves | Spotted B-86 Titan 10092 | -4/Upper Caves | Lost 9 parts (2p4n3u) 10335 | -4/Upper Caves | Build established: Mutant 10519 | -4/Upper Caves | Discovered new exit (range 7) 10522 | -4/Upper Caves | Encountered a Warlord checkpoint 10548 | -4/Upper Caves | Learned location of Armory (-4) 10593 | -4/Upper Caves | Entered another Upper Caves area 10682 | -4/Upper Caves | Core integrity fell below 50% 10721 | -4/Upper Caves | Lost 5 parts (1p2n1u1w) 10833 | -4/Upper Caves | Attracted the attention of an 0b10 checkpoint 10912 | -4/Upper Caves | Lost 3 parts (2u1w) 11040 | -4/Upper Caves | Discovered new exit (range 20) 11072 | -4/Upper Caves | Entered Warlord 11127 | -4/Warlord | System corruption cleaned by Quarantine Array 11162 | -4/Warlord | Discovered new exit (range 12) 11178 | -4/Warlord | Entered Proximity Caves 11290 | -3/Proximity Caves | Released all parts (10) 11296 | -3/Proximity Caves | Core integrity fell below 20% 11319 | -3/Proximity Caves | Lost 4 parts (2p1n1w) 11341 | -3/Proximity Caves | Destroyed by S-43 Plague with Heavy Machine Gun Last Messages --------------- 11290_ Released Point Defense Array. 11290_ Released Cld. Pulse Rifle. 11290_ Released Imp. Armor Integrity Analyzer. 11290_ Released Lrg. Storage Unit. 11290_ Released Enh. Optical Array. 11290_ Released Graphene Brace. 11290_ Released Adv. System Shield. 11290_ Released Core Analyzer. 11290_ Released 0b10 Decoder Chip [Generic]. 11290_ Released Matter Neutralizer. 11290_ Acquired 35 matter. 11295_ Microactuators fries itself beyond repair. 11300_ RIF reveals location of hidden door. 11304_ Connecting with Outpost Terminal... 11304_ Current location identified: Proximity Caves >>Query(Status Report 434V) HEAT REACHING DANGEROUS LEVELS. INVESTIGATING SOURCE. 11308_ Acquired Slug Cannon. 11311_ Penetrated by Slug. 11311_ Slug penetrates Wall. Map ----- +----------------------------------------------------+ | ## #?? ?## ### ## ## #"" ""# | | # ## ?# ## ### ##### ### | | ? ??# #########?# | | ?? ????## ]!!]#??###????# | | ?? ?????## |]]]][#?## #????## | | ??? ??????# #####!%!=#?# #?????# | | ??? #?###??# ##??##![#### ##????# #### | | ???? ### #### ## #?####?# ##???# ##?### | | ##### ## # ??????# #??## #???## | | ## # ##????# #### #???## | | ?? ## ##### ##???## ## ##?### # | | ????# ### ## #????## ##??# ## | | ????# #?????## ##???# ##? | | ????# %! ######## ######????## #?? | | ????# ## s ## ## #??????????####?? | | ????# #### #???????????????? | | ##### #??# ####???????????????? | | # #?? ##??????????????????? | | # ######? ##???????????????????? | | #??????? s ##???????????????????? | | ###??????? ### s #???????????????????? | | ??????????# ##?##### ##???????????????????? | | ??????????## #??????## ###????????????????????? | | ???????????? #???????# #??????????????????????? | | ???????????? ???##### ####### $????????? | | ???????????? ???# @ ????????? | | ???????????? ???# """???????????? | | ???????????? #??# ### """???????????? | | ???????????? ##??## #?????????????????? | | ???????????? #????# #?????????????????? | | ??????????? ????# ????????????????? | | # ?????????? ????## ??????????????? | | ??#????????? ?????#### #### ?????????????? | | ?????????????#??????????## ###???? ????????????? | | ??????????????????????????###???????##???????????? | | ?????????????????????????????????????????????????? | | ?????????????????????????????????????????????????? | | ?????????????????????????????????????????????????? | | ?????????????????????????????????????????????????? | | ?????????????????????????????????????????????????? | | ?????????????????????????????????????????????????? | | ?????????????????????????????????????????????????? | | ?????????????????????????????????????????????????? | | ?????????????????????????????????????????????????? | | ?????????????????????????????????????????????????? | | ?????????????????????????????????????????????????? | | ?????????????????????????????????????????????????? | | ?????????????????????????????????????????????????? | | ?????????????????????????????????????????????????? | | ?????????????????????????????????????????????????? | +----------------------------------------------------+ Best States ------------- Heat Dissipation 76 Coolant Potential 50 Energy Generation 37 Energy Capacity 510 Matter Stores 300 Matter Capacity 300 Sight Range 22 Robot Scan Range 20 Terrain Scan Density 10 Armor Coverage 525 Resistance: KI 30 Resistance: TH 20 Propulsion Shielding 66 Weapon Shielding 33 Point Defense Rating 160 Phase Shifting 5 Evasion (%) 60 Targeting Accuracy 8 Core Analysis 6 Armor Integrity Analysis 40 Recoil Reduction 2 Particle Charging 15 Offensive Hacking 10 Defensive Hacking 14 Relay Coupler Types 3 Relay Coupler Value 76 Authchip Count 2 Item Schematics ----------------- Lrg. Storage Unit | -9/Materials | Hacked Combat Drone Bay | -6/Data Miner | Free Lgt. Regenerative Plating | -6/Data Miner | Free Enh. Armored Leg | -6/Data Miner | Free Imp. Thermal Defense Suite | -6/Data Miner | Free Ionic Axe | -6/Data Miner | Free Field Propulsion Array | -6/Data Miner | Free Imp. Force Field | -6/Data Miner | Free Hvy. Gauss Cannon | -6/Data Miner | Free Mass Driver | -6/Data Miner | Free Adv. Launcher Guidance Computer | -6/Data Miner | Free Robot Schematics ------------------ L-41 Fighter | -6/Data Miner | Free H-66 Slayer | -6/Data Miner | Free Y-64 Sentinel | -6/Data Miner | Free S-27 Virus | -6/Data Miner | Free A-27 Freighter | -6/Data Miner | Free M-22 Extractor | -6/Data Miner | Free M-36 Artificer | -6/Data Miner | Free Fabricated ------------ Nothing Alien Tech Used ----------------- None Achievements -------------- Cannon Specialist Challenges ------------ None Game ------ Seed IntegritySlugNanovents Manual? 0 Play Time 02:56:52 Cumulative 540.3 hours Start 2022.03.28 @ 11:40:04 End 2022.03.28 @ 18:08:16 Sessions 1 Manual Loads 0 Difficulty Rogue Special Mode None Game No. 335 Rogue 335 Adventurer 0 Explorer 0 Win Type - Total 36 Types 24/1/6/5/0/0/0/0/0 Lore% 82 Gallery% 83 Achievement% 78 Wizard Run 0 Options --------- ASCII 0 Keyboard 0 Movement Numpad Keybinds 0 Fullscreen 2 Font 36/X11 Map View 76x50 Tactical HUD 1 Map Filters NONE Filters NONE Steam 1 RUN: 89c9d7fe-a9a5-4234-a92f-fb2b03eb27d3